Workbook

Sheet Cover

Sheet Report
A2: Updated: April 17, 2014
A3: Revisions Noted in Bold
A4: Dynamically positioned «
L5: Dayrate on | M5: Dayrate on | O5: Estimated Out of Service Days (4) | T5: Estimated Out of Service Days (4)
E6: Yr. (1) | F6: Water | G6: Drilling | J6: Estimated | K6: Estimated | L6: Current | M6: Previous
B7: Footnote | C7: Floater | D7: Dynamically | E7: Entered | F7: Depth | G7: Depth | J7: Contract | K7: Expiration | L7: Contract (3) | M7: Contract (3) | O7: 2014 | T7: 2015
A8: Rig Type/Name | B8: References | C8: Type | D8: Positioned | E8: Service | F8: (Feet) | G8: (Feet) | H8: Location | I8: Customer | J8: Start Date (2) | K8: Date (2) | L8: (Dollars) | M8: (Dollars) | O8: Q1 | P8: Q2 | Q8: Q3 | R8: Q4 | T8: Q1 | U8: Q2 | V8: Q3 | W8: Q4
A10: Rigs Under Construction (14)
A12: Deepwater Asgard | B12: -11 | C12: ship | D12: « | E12: TBA | F12: 12000 | G12: 40000 | H12: Indonesia | I12: TBA | J12: Q2 2014 | K12: Q2 2017 | L12: 600000 | M12: N/A
A13: Deepwater Invictus | B13: (6), (11) | C13: ship | D13: « | E13: TBA | F13: 12000 | G13: 40000 | H13: USGOM | I13: BHP Billiton | J13: Q2 2014 | K13: Q2 2017 | L13: 595000 | M13: N/A
A14: Deepwater Thalassa | B14: (6), (11) | C14: ship | D14: « | E14: TBA | F14: 12000 | G14: 40000 | H14: TBA | I14: Shell | J14: Q1 2016 | K14: Q4 2025 | L14: 519000 | M14: N/A
A15: Deepwater Proteus | B15: (6), (11) | C15: ship | D15: « | E15: TBA | F15: 12000 | G15: 40000 | H15: TBA | I15: Shell | J15: Q2 2016 | K15: Q2 2026 | L15: 519000 | M15: N/A
A16: Deepwater Pontus | B16: (6), (11) | C16: ship | D16: « | E16: TBA | F16: 12000 | G16: 40000 | H16: TBA | I16: Shell | J16: Q1 2017 | K16: Q4 2026 | L16: 519000 | M16: N/A
A17: Deepwater Poseidon | B17: (6), (11) | C17: ship | D17: « | E17: TBA | F17: 12000 | G17: 40000 | H17: TBA | I17: Shell | J17: Q2 2017 | K17: Q2 2027 | L17: 519000 | M17: N/A
A18: Deepwater Conqueror | B18: (6), (8), (11) | C18: ship | D18: « | E18: TBA | F18: 12000 | G18: 40000 | H18: USGOM | I18: Chevron | J18: Q4 2016 | K18: Q4 2021 | L18: 599000 | M18: N/A
A19: JSPL Ultra-Deepwater Drillship TBN 1 | B19: -9 | C19: ship | D19: « | E19: TBA | F19: 12000 | G19: 40000 | H19: TBA
A20: JSPL Ultra-Deepwater Drillship TBN 2 | B20: -9 | C20: ship | D20: « | E20: TBA | F20: 12000 | G20: 40000 | H20: TBA
A21: KFELS High-Specification Jackup TBN 1 | B21: -23 | E21: TBA | F21: 400 | G21: 35000 | H21: TBA
A22: KFELS High-Specification Jackup TBN 2 | B22: -23 | E22: TBA | F22: 400 | G22: 35000 | H22: TBA
A23: KFELS High-Specification Jackup TBN 3 | B23: -23 | E23: TBA | F23: 400 | G23: 35000 | H23: TBA
A24: KFELS High-Specification Jackup TBN 4 | B24: -23 | E24: TBA | F24: 400 | G24: 35000 | H24: TBA
A25: KFELS High-Specification Jackup TBN 5 | B25: -23 | E25: TBA | F25: 400 | G25: 35000 | H25: TBA
A27: High Specification Floater: Ultra-Deepwater (27)
A29: Discoverer Americas | B29: -6 | C29: ship | D29: « | E29: 2009 | F29: 12000 | G29: 40000 | H29: Tanzania | I29: Statoil | J29: 2014-03-15 | K29: 2016-03-01 | L29: 735000 | M29: 636000 | O29: 0 | P29: 18 | Q29: 12 | R29: 0 | T29: 0 | U29: 0 | V29: 0 | W29: 0
A30: Deepwater Champion | B30: -6 | C30: ship | D30: « | E30: 2011 | F30: 12000 | G30: 40000 | H30: USGOM | I30: ExxonMobil | J30: 2012-06-01 | K30: 2015-11-01 | L30: 677000 | M30: 655000 | O30: 0 | P30: 0 | Q30: 0 | R30: 0 | T30: 0 | U30: 60 | V30: 0 | W30: 0
A31: Discoverer Clear Leader | B31: (6), (12) | C31: ship | D31: « | E31: 2009 | F31: 12000 | G31: 40000 | H31: USGOM | I31: Chevron | J31: 2009-09-01 | K31: 2014-09-01 | L31: 571000 | M31: 503000 | O31: 0 | P31: 21 | Q31: 0 | R31: 0 | T31: 0 | U31: 0 | V31: 0 | W31: 0
B32: (6), (8) | H32: USGOM | I32: Chevron | J32: 2014-09-01 | K32: 2018-08-01 | L32: 590000 | M32: 571000
A33: Discoverer Inspiration | B33: -6 | C33: ship | D33: « | E33: 2010 | F33: 12000 | G33: 40000 | H33: USGOM | I33: Chevron | J33: 2010-02-01 | K33: 2015-03-01 | L33: 527000 | M33: 494000 | O33: 0 | P33: 0 | Q33: 0 | R33: 0 | T33: 2 | U33: 19 | V33: 0 | W33: 0
B34: (6), (8) | H34: USGOM | I34: Chevron | J34: 2015-04-20 | K34: 2020-04-20 | L34: 585000 | M34: =+L33 -> 527000
A35: Dhirubhai Deepwater KG1 | C35: ship | D35: « | E35: 2009 | F35: 12000 | G35: 35000 | H35: India | I35: Reliance | J35: 2009-08-01 | K35: 2014-07-01 | L35: 510000 | M35: N/A | O35: 0 | P35: 0 | Q35: 41 | R35: 0 | T35: 0 | U35: 0 | V35: 0 | W35: 0
A36: Dhirubhai Deepwater KG2 | C36: ship | D36: « | E36: 2010 | F36: 12000 | G36: 35000 | H36: India | I36: Reliance | J36: 2012-03-01 | K36: 2015-02-01 | L36: 510000 | M36: 573000 | O36: 0 | P36: 21 | Q36: 0 | R36: 0 | T36: 24 | U36: 37 | V36: 0 | W36: 0
A37: Discoverer India | B37: -14 | C37: ship | D37: « | E37: 2010 | F37: 12000 | G37: 40000 | H37: USGOM | I37: Reliance | J37: 2013-09-01 | K37: 2016-09-01 | L37: 528000 | M37: 499000 | O37: 0 | P37: 0 | Q37: 0 | R37: 0 | T37: 0 | U37: 60 | V37: 0 | W37: 0
H38: India | I38: Reliance | J38: 2016-09-01 | K38: 2020-11-01 | L38: 508000 | M38: 528000
A39: Petrobras 10000 | B39: (6), (7), (8) | C39: ship | D39: « | E39: 2009 | F39: 12000 | G39: 37500 | H39: Brazil | I39: Petrobras | J39: 2011-02-01 | K39: 2019-08-01 | L39: 435000 | M39: N/A | O39: 0 | P39: 0 | Q39: 62 | R39: 11 | T39: 0 | U39: 0 | V39: 0 | W39: 0
A40: Discoverer Deep Seas | B40: -6 | C40: ship | D40: « | E40: 2001 | F40: 10000 | G40: 35000 | H40: USGOM | I40: Murphy Oil | J40: 2013-10-31 | K40: 2016-11-30 | L40: 595000 | M40: 456000 | O40: 0 | P40: 0 | Q40: 0 | R40: 0 | T40: 90 | U40: 1 | V40: 0 | W40: 0
A41: Discoverer Enterprise | C41: ship | D41: « | E41: 1999 | F41: 10000 | G41: 35000 | H41: USGOM | I41: BP | J41: 2014-01-31 | K41: 2014-10-31 | L41: 615000 | M41: 515000 | O41: 0 | P41: 0 | Q41: 0 | R41: 12 | T41: 0 | U41: 0 | V41: 0 | W41: 0
A42: Discoverer Spirit | B42: -6 | C42: ship | D42: « | E42: 2000 | F42: 10000 | G42: 35000 | H42: USGOM | I42: Anadarko | J42: 2012-07-01 | K42: 2014-06-01 | L42: 557000 | M42: 546000 | O42: 0 | P42: 0 | Q42: 33 | R42: 51 | T42: 0 | U42: 0 | V42: 0 | W42: 0
A43: GSF C.R. Luigs | B43: -6 | C43: ship | D43: « | E43: 2000 | F43: 10000 | G43: 35000 | H43: USGOM | I43: BHP Billiton | J43: 2014-02-01 | K43: 2014-06-01 | L43: 580000 | M43: 540000 | O43: 0 | P43: 0 | Q43: 0 | R43: 0 | T43: 0 | U43: 91 | V43: 30 | W43: 0
A44: GSF Jack Ryan | B44: (6) | C44: ship | D44: « | E44: 2000 | F44: 10000 | G44: 35000 | H44: Nigeria | I44: Total | J44: 2009-06-01 | K44: 2014-07-01 | L44: 445000 | M44: 297000 | O44: 0 | P44: 0 | Q44: 0 | R44: 0 | T44: 90 | U44: 34 | V44: 0 | W44: 0
A45: Deepwater Discovery | B45: (6), (7), (19) | C45: ship | D45: « | E45: 2000 | F45: 10000 | G45: 30000 | H45: Nigeria | I45: Shell | J45: 2014-01-01 | K45: 2014-09-01 | L45: 461000 | M45: NA | O45: 0 | P45: 0 | Q45: 0 | R45: 0 | T45: 0 | U45: 0 | V45: 0 | W45: 90
A46: Deepwater Frontier | C46: ship | D46: « | E46: 1999 | F46: 10000 | G46: 30000 | H46: Australia | I46: ExxonMobil | J46: 2014-02-28 | K46: 2014-08-01 | L46: 565000 | M46: 534000 | O46: 8.25 | P46: 0 | Q46: 0 | R46: 0 | T46: 0 | U46: 0 | V46: 0 | W46: 0
A47: Deepwater Millennium | B47: (7) | C47: ship | D47: « | E47: 1999 | F47: 10000 | G47: 30000 | H47: Australia | I47: Woodside | J47: 2014-04-01 | K47: 2015-04-15 | L47: 600000 | M47: 570000 | O47: 90 | P47: 24 | Q47: 0 | R47: 0 | T47: 0 | U47: 0 | V47: 0 | W47: 0
B48: (7) | H48: Australia | I48: Woodside | J48: 2015-04-15 | K48: 2016-04-21 | L48: 611000 | M48: 600000
A49: Deepwater Pathfinder | B49: -6 | C49: ship | D49: « | E49: 1998 | F49: 10000 | G49: 30000 | H49: USGOM | I49: ENI | J49: 2010-08-01 | K49: 2015-04-01 | L49: 680000 | M49: 550000 | O49: 0 | P49: 0 | Q49: 0 | R49: 0 | T49: 0 | U49: 0 | V49: 0 | W49: 0
A50: Deepwater Expedition | C50: ship | D50: « | E50: 1999 | F50: 8500 | G50: 30000 | H50: Saudi Arabia | I50: Saudi Aramco | J50: 2012-11-01 | K50: 2014-11-01 | L50: 650000 | M50: 640000 | O50: 0 | P50: 0 | Q50: 0 | R50: 0 | T50: 0 | U50: 0 | V50: 0 | W50: 0
A51: Cajun Express | B51: (6), (7), (20) | C51: semi | D51: « | E51: 2001 | F51: 8500 | G51: 35000 | H51: Morocco/Senegal | I51: Cairn Energy | J51: 2013-10-13 | K51: 2014-10-22 | L51: 600000 | M51: 520000 | O51: 0 | P51: 0 | Q51: 0 | R51: 39 | T51: 0 | U51: 0 | V51: 0 | W51: 0
H52: CNR | I52: Ivory Coast | J52: 2014-11-01 | K52: 2015-11-01 | L52: 495000 | M52: 600000
A53: Deepwater Nautilus | B53: (6), (8) | C53: semi | E53: 2000 | F53: 8000 | G53: 30000 | H53: USGOM | I53: Shell | J53: 2012-08-01 | K53: 2017-08-01 | L53: 533000 | M53: 551000 | O53: 0 | P53: 0 | Q53: 30 | R53: 92 | T53: 13 | U53: 0 | V53: 0 | W53: 0
A54: GSF Explorer | C54: ship | D54: « | E54: 1972/1998 | F54: 7800 | G54: 30000 | H54: India | I54: ONGC | J54: 2013-07-24 | K54: 2014-07-23 | L54: 412000 | M54: N/A | O54: 0 | P54: 0 | Q54: 0 | R54: 0 | T54: 0 | U54: 0 | V54: 0 | W54: 0
A55: Discoverer Luanda | B55: (6), (13) | C55: ship | D55: « | E55: 2010 | F55: 7500 | G55: 40000 | H55: Angola | I55: BP | J55: 2011-01-01 | K55: 2018-01-01 | L55: 470000 | M55: N/A | O55: 0 | P55: 0 | Q55: 0 | R55: 0 | T55: 27 | U55: 1 | V55: 0 | W55: 0
A56: GSF Development Driller I | C56: semi | D56: « | E56: 2005 | F56: 7500 | G56: 37500 | H56: USGOM | K56: Idle | O56: 0 | P56: 0 | Q56: 0 | R56: 0 | T56: 0 | U56: 0 | V56: 0 | W56: 0
A57: GSF Development Driller II | B57: -6 | C57: semi | D57: « | E57: 2005 | F57: 7500 | G57: 37500 | H57: USGOM | I57: BP | J57: 2008-11-01 | K57: 2014-04-28 | L57: 606000 | M57: 208000 | O57: 0 | P57: 20 | Q57: 0 | R57: 0 | T57: 0 | U57: 0 | V57: 0 | W57: 0
A58: Development Driller III | B58: -6 | C58: semi | D58: « | E58: 2009 | F58: 7500 | G58: 37500 | H58: USGOM | I58: BP | J58: 2009-11-01 | K58: 2016-11-01 | L58: 428000 | M58: N/A | O58: 0 | P58: 12 | Q58: 0 | R58: 0 | T58: 0 | U58: 0 | V58: 0 | W58: 0
A59: Sedco Energy | C59: semi | D59: « | E59: 2001 | F59: 7500 | G59: 35000 | H59: Ghana | K59: Idle | O59: 0 | P59: 0 | Q59: 0 | R59: 0 | T59: 0 | U59: 0 | V59: 0 | W59: 81
A60: Sedco Express | B60: -7 | C60: semi | D60: « | E60: 2001 | F60: 7500 | G60: 35000 | H60: Nigeria | I60: ENI | J60: 2013-01-01 | K60: 2014-04-01 | L60: 600000 | M60: 500000 | O60: 0 | P60: 0 | Q60: 0 | R60: 0 | T60: 0 | U60: 0 | V60: 0 | W60: 88
B61: (22) | H61: Nigeria | I61: ENI | J61: 2014-04-01 | K61: 2014-10-01 | L61: 455000 | M61: 600000
M63: Total Estimated Days Out of Service | O63: =SUM(O29:O60) -> 98.25 | P63: =SUM(P29:P60) -> 116 | Q63: =SUM(Q29:Q60) -> 178 | R63: =SUM(R29:R60) -> 205 | T63: =SUM(T29:T60) -> 246 | U63: 303 | V63: 30 | W63: 259
M64: Estimated Average Contract Dayrate(5) | O64: 547000 | P64: 547000 | Q64: 564000 | R64: 573000 | T64: 563000 | U64: 560000 | V64: 563000 | W64: 560000
A66: High Specification Floater: Deepwater (12)
A68: Deepwater Navigator | B68: (7), (8), (15) | C68: ship | D68: « | E68: 1971/2000 | F68: 7200 | G68: 25000 | H68: Brazil | I68: Petrobras | J68: 2011-05-01 | K68: 2016-02-01 | L68: 374000 | M68: 190000 | O68: 0 | P68: 0 | Q68: 14 | R68: 0 | T68: 0 | U68: 0 | V68: 0 | W68: 0
A69: Discoverer Seven Seas | C69: ship | D69: « | E69: 1976/1997 | F69: 7000 | G69: 25000 | H69: Indonesia | I69: Inpex | J69: 2013-06-01 | K69: 2014-06-30 | L69: 500000 | M69: 490000 | O69: 0 | P69: 0 | Q69: 10 | R69: 0 | T69: 0 | U69: 0 | V69: 0 | W69: 0
H70: TBA | I70: TBA | J70: 2014-07-25 | K70: 2014-09-30 | L70: 400000 | M70: 500000
A71: Transocean Marianas | B71: (6), (8) | C71: semi | E71: 1979/1998 | F71: 7000 | G71: 30000 | H71: South Africa | I71: PetroSA | J71: 2014-05-23 | K71: 2015-03-30 | L71: 370000 | M71: N/A | O71: 10 | P71: 49 | Q71: 0 | R71: 0 | T71: 0 | U71: 0 | V71: 0 | W71: 0
A72: Sedco 706 | B72: (6), (7) | C72: semi | D72: « | E72: 1976/1994/ 2008 | F72: 6500 | G72: 25000 | H72: Brazil | I72: Chevron | J72: 2009-04-01 | K72: 2014-05-01 | L72: 361000 | M72: N/A | O72: 0 | P72: 21 | Q72: 0 | R72: 0 | T72: 43 | U72: 17 | V72: 0 | W72: 0
A73: Sedco 702 | B73: (6), (7) | C73: semi | D73: « | E73: 1973/2007 | F73: 6500 | G73: 25000 | H73: Nigeria | I73: Shell | J73: 2012-09-01 | K73: 2016-02-01 | L73: 461000 | M73: 357000 | O73: 59.60416667 | P73: 0 | Q73: 0 | R73: 0 | T73: 0 | U73: 0 | V73: 0 | W73: 0
A74: Sedco 707 | B74: (7), (8), (15), (19) | C74: semi | D74: « | E74: 1976/1997 | F74: 6500 | G74: 25000 | H74: Brazil | I74: Petrobras | J74: 2009-11-01 | K74: 2014-11-01 | L74: 394000 | M74: 188000 | O74: 0 | P74: 0 | Q74: 0 | R74: 0 | T74: 0 | U74: 0 | V74: 0 | W74: 31
A75: GSF Celtic Sea | C75: semi | E75: 1982/1998 | F75: 5750 | G75: 25000 | H75: Angola | I75: ExxonMobil | J75: 2013-08-01 | K75: 2014-09-01 | L75: 328000 | M75: 324000 | O75: 0 | P75: 0 | Q75: 0 | R75: 36 | T75: 6 | U75: 0 | V75: 0 | W75: 0
A76: Jack Bates | B76: -7 | C76: semi | E76: 1986/1997 | F76: 5400 | G76: 30000 | H76: Australia | I76: Santos | J76: 2014-02-25 | K76: 2014-05-22 | L76: 380000 | M76: 525000 | O76: 0 | P76: 10 | Q76: 0 | R76: 0 | T76: 0 | U76: 0 | V76: 0 | W76: 0
A77: M.G. Hulme, Jr. | B77: -7 | C77: semi | E77: 1983/1996 | F77: 5000 | G77: 25000 | H77: India | I77: ONGC | J77: 2011-09-01 | K77: 2014-05-15 | L77: 190000 | M77: N/A | O77: 0 | P77: 45 | Q77: 0 | R77: 0 | T77: 0 | U77: 0 | V77: 0 | W77: 0
A78: Sedco 710 | B78: -21 | C78: semi | D78: « | E78: 1983/2001 | F78: 4500 | G78: 25000 | H78: Spain | K78: Stacked | O78: 0 | P78: 0 | Q78: 0 | R78: 0 | T78: 0 | U78: 0 | V78: 0 | W78: 0
A79: Transocean Rather | C79: semi | E79: 1988 | F79: 4500 | G79: 25000 | H79: Malaysia | K79: Stacked | O79: 0 | P79: 0 | Q79: 0 | R79: 0 | T79: 0 | U79: 0 | V79: 0 | W79: 0
A80: Sovereign Explorer | C80: semi | E80: 1984 | F80: 4500 | G80: 25000 | H80: USGOM | K80: Stacked | O80: 0 | P80: 0 | Q80: 0 | R80: 0 | T80: 0 | U80: 0 | V80: 0 | W80: 0
M82: Total Estimated Days Out of Service | O82: =SUM(O68:O80) -> 69.60416667 | P82: =SUM(P68:P80) -> 125 | Q82: =SUM(Q68:Q80) -> 24 | R82: =SUM(R68:R80) -> 36 | T82: =SUM(T68:T80) -> 49 | U82: =SUM(U68:U80) -> 17 | V82: =SUM(V68:V80) -> 0 | W82: =SUM(W68:W80) -> 31
M83: Estimated Average Contract Dayrate(5) | O83: 378000 | P83: 389000 | Q83: 374000 | R83: 378000 | T83: 386000 | U83: 382000 | V83: 377000 | W83: 377000
A85: High Specification Floater: Harsh Environment (7)
A87: Transocean Barents | B87: (6), (7), (17) | C87: semi | D87: « | E87: 2009 | F87: 10000 | G87: 30000 | H87: NNS | I87: DNO | J87: 2014-03-01 | K87: 2014-06-01 | L87: 587000 | M87: 582000 | O87: 0 | P87: 0 | Q87: 70 | R87: 0 | T87: 0 | U87: 0 | V87: 0 | W87: 0
B88: (6), (7) | H88: NNS | I88: Shell | J88: 2014-08-01 | K88: 2015-08-01 | L88: 603000 | M88: =L87 -> 587000
A89: Transocean Spitsbergen | B89: (6), (7), (16) | C89: semi | D89: « | E89: 2010 | F89: 10000 | G89: 30000 | H89: NNS | I89: Statoil | J89: 2013-07-01 | K89: 2015-07-01 | L89: 547000 | M89: 504000 | O89: 0 | P89: 0 | Q89: 0 | R89: 0 | T89: 55 | U89: 0 | V89: 0 | W89: 0
A90: Henry Goodrich | B90: -6 | C90: semi | E90: 1985/2007 | F90: 5000 | G90: 30000 | H90: Canada | I90: Husky | J90: 2010-10-01 | K90: 2014-04-01 | L90: 346000 | M90: 381000 | O90: 0 | P90: 0 | Q90: 0 | R90: 0 | T90: 70 | U90: 30 | V90: 0 | W90: 0
B91: (6), (8) | H91: Canada | I91: Suncor | J91: 2014-04-27 | K91: 2015-01-20 | L91: 476000 | M91: 346000
A92: Transocean Leader | B92: (6), (7) | C92: semi | E92: 1987/1997 | F92: 4500 | G92: 25000 | H92: NNS | I92: Statoil | J92: 2012-03-01 | K92: 2015-03-01 | L92: 410000 | M92: 469000 | O92: 0 | P92: 0 | Q92: 0 | R92: 0 | T92: 0 | U92: 0 | V92: 0 | W92: 0
A93: Paul B. Loyd, Jr. | B93: -7 | C93: semi | E93: 1990 | F93: 2000 | G93: 25000 | H93: UKNS | I93: BP | J93: 2013-09-01 | K93: 2014-09-01 | L93: 441000 | M93: 350000 | O93: 0 | P93: 0 | Q93: 0 | R93: 0 | T93: 13 | U93: 87 | V93: 0 | W93: 0
B94: -7 | H94: UKNS | I94: BP | J94: =+K93 -> 2014-09-01 | K94: 2015-03-01 | L94: 447000 | M94: 441000
A95: Transocean Arctic | B95: (6), (7) | C95: semi | E95: 1986 | F95: 1650 | G95: 25000 | H95: NNS | I95: Rig Management Norway | J95: 2013-09-01 | K95: 2014-07-15 | L95: 415000 | M95: 423000 | O95: 0 | P95: 0 | Q95: 34 | R95: 44 | T95: 0 | U95: 0 | V95: 0 | W95: 0
B96: (6), (7) | H96: NNS | I96: Rig Management Norway | J96: =K95 -> 2014-07-15 | K96: 2015-08-01 | L96: 419000 | M96: =+L95 -> 415000
B97: (6), (7) | H97: NNS | I97: OMV | J97: 2015-08-27 | K97: 2016-01-31 | L97: 519000 | M97: =L96 -> 419000
A98: Polar Pioneer | B98: (6), (24) | C98: semi | E98: 1985 | F98: 1500 | G98: 25000 | H98: Alaska | I98: Shell | J98: 2014-07-16 | K98: 2014-10-31 | L98: 620000 | M98: 523000 | O98: 0 | P98: 75 | Q98: 39 | R98: 0 | T98: 0 | U98: 0 | V98: 0 | W98: 0
B99: (6), (24) | H99: Alaska | I99: Shell | J99: 2014-11-01 | K99: 2015-06-30 | L99: 589000 | M99: 620000
B100: (6), (24) | H100: Alaska | I100: Shell | J100: 2015-07-01 | K100: 2015-10-31 | L100: 620000 | M100: 589000
B101: (6), (24) | H101: Alaska | I101: Shell | J101: 2015-11-01 | K101: 2016-06-30 | L101: 589000 | M101: 620000
B102: (6), (24) | H102: Alaska | I102: Shell | J102: 2016-07-01 | K102: 2016-10-31 | L102: 620000 | M102: 589000
B103: (6), (24) | H103: Alaska | I103: Shell | J103: 2016-11-01 | K103: 2017-06-30 | L103: 589000 | M103: 620000
M106: Total Estimated Days Out of Service | O106: =SUM(O87:O103) -> 0 | P106: =SUM(P87:P103) -> 75 | Q106: =SUM(Q87:Q103) -> 143 | R106: =SUM(R87:R103) -> 44 | T106: =SUM(T87:T103) -> 138 | U106: =SUM(U87:U103) -> 117 | V106: =SUM(V87:V103) -> 0 | W106: =SUM(W87:W103) -> 0
M107: Estimated Average Contract Dayrate(5) | O107: 464000 | P107: 474000 | Q107: 485000 | R107: 508000 | T107: 500000 | U107: 540000 | V107: 553000 | W107: 563000
A109: Midwater Floaters (21) - See Footnote 25
A111: Sedco 700 | C111: semi | E111: 1973/1997 | F111: 3600 | G111: 25000 | H111: Malaysia | K111: Stacked | O111: 0 | P111: 0 | Q111: 0 | R111: 0 | T111: 0 | U111: 0 | V111: 0 | W111: 0
A112: Transocean Legend | C112: semi | E112: 1983 | F112: 3500 | G112: 25000 | H112: Australia | I112: Conoco Phillips | J112: 2012-03-01 | K112: 2014-04-01 | L112: 293000 | M112: 300000 | O112: 26.54166667 | P112: 5 | Q112: 0 | R112: 0 | T112: 0 | U112: 0 | V112: 0 | W112: 0
B113: -7 | H113: Australia | I113: Conoco Phillips | J113: =+K112 -> 2014-04-01 | K113: 2014-11-30 | L113: 425000 | M113: 293000
A114: Transocean Amirante | C114: semi | E114: 1978/1997 | F114: 3500 | G114: 25000 | H114: Malta | K114: Idle | O114: 0 | P114: 0 | Q114: 0 | R114: 0 | T114: 0 | U114: 0 | V114: 0 | W114: 0
A115: GSF Arctic I | C115: semi | E115: 1983/1996 | F115: 3400 | G115: 25000 | H115: Spain | K115: Stacked | O115: 0 | P115: 0 | Q115: 0 | R115: 0 | T115: 0 | U115: 0 | V115: 0 | W115: 0
A116: Transocean Driller | B116: (7), (8) | C116: semi | E116: 1991 | F116: 3000 | G116: 25000 | H116: Brazil | I116: Petrobras | J116: 2010-07-01 | K116: 2016-07-01 | L116: 264000 | M116: 116000 | O116: 0 | P116: 0 | Q116: 0 | R116: 0 | T116: 0 | U116: 0 | V116: 0 | W116: 0
A117: GSF Rig 135 | C117: semi | E117: 1983 | F117: 2800 | G117: 25000 | H117: Congo | I117: Total | J117: 2013-07-01 | K117: 2015-09-30 | L117: 365000 | M117: 340000 | O117: 0 | P117: 0 | Q117: 0 | R117: 0 | T117: 0 | U117: 0 | V117: 0 | W117: 7
A118: GSF Rig 140 | B118: (6) | C118: semi | E118: 1983 | F118: 2800 | G118: 25000 | H118: India | I118: ONGC | J118: 2012-03-01 | K118: 2014-09-01 | L118: 260000 | M118: N/A | O118: 0 | P118: 0 | Q118: 0 | R118: 30 | T118: 0 | U118: 0 | V118: 0 | W118: 0
A119: GSF Aleutian Key | C119: semi | E119: 1976/1999/2001 | F119: 2300 | G119: 25000 | H119: Gabon | K119: Stacked | O119: 0 | P119: 0 | Q119: 0 | R119: 0 | T119: 0 | U119: 0 | V119: 0 | W119: 0
A120: Sedco 711 | B120: -18 | C120: semi | E120: 1982 | F120: 1800 | G120: 25000 | H120: UKNS | I120: Talisman | J120: 2013-12-01 | K120: 2014-06-01 | L120: 350000 | M120: 275000 | O120: 12.91666667 | P120: 0 | Q120: 0 | R120: 0 | T120: 0 | U120: 0 | V120: 0 | W120: 0
H121: UKNS | I121: Talisman | J121: =+K120 -> 2014-06-01 | K121: 2014-12-01 | L121: 355000 | M121: =+L120 -> 350000
H122: UKNS | I122: Talisman | J122: =+K121 -> 2014-12-01 | K122: 2015-06-01 | L122: 361000 | M122: =+L121 -> 355000
H123: UKNS | I123: Talisman | J123: =+K122 -> 2015-06-01 | K123: 2015-12-01 | L123: 366000 | M123: 361000
A124: Transocean John Shaw | B124: -7 | C124: semi | E124: 1982 | F124: 1800 | G124: 25000 | H124: UKNS | I124: Taqa | J124: 2014-04-27 | K124: 2014-12-01 | L124: 361000 | M124: 360000 | O124: 81.45833333 | P124: 26 | Q124: 0 | R124: 0 | T124: 0 | U124: 0 | V124: 0 | W124: 0
B125: -7 | H125: UKNS | I125: Taqa | J125: 2014-12-01 | K125: 2015-12-01 | L125: 416000 | M125: =+L124 -> 361000
A126: GSF Arctic III | B126: (7) | C126: semi | E126: 1984 | F126: 1800 | G126: 25000 | H126: UKNS | I126: ATP Oil & Gas | J126: 2013-10-01 | K126: 2014-04-19 | L126: 336000 | M126: 363000 | O126: 0 | P126: 0 | Q126: 0 | R126: 0 | T126: 82 | U126: 0 | V126: 0 | W126: 0
B127: (7) | H127: UKNS | I127: Chevron | J127: 2014-04-19 | K127: 2014-09-14 | L127: 411000 | M127: 336000
A128: Sedco 712 | C128: semi | E128: 1983 | F128: 1600 | G128: 25000 | H128: UKNS | I128: Talisman | J128: 2013-10-08 | K128: 2014-04-01 | L128: 380000 | M128: N/A | O128: 0 | P128: 0 | Q128: 0 | R128: 0 | T128: 0 | U128: 0 | V128: 0 | W128: 0
H129: UKNS | I129: Talisman | J129: =K128 -> 2014-04-01 | K129: 2014-10-01 | L129: 386000 | M129: =L128 -> 380000
H130: UKNS | I130: Talisman | J130: =K129 -> 2014-10-01 | K130: 2015-04-01 | L130: 391000 | M130: =L129 -> 386000
H131: UKNS | I131: Talisman | J131: 2015-04-01 | K131: 2015-10-01 | L131: 397000 | M131: 391000
H132: UKNS | I132: Talisman | J132: 2015-10-01 | K132: 2016-04-01 | L132: 403000 | M132: 397000
H133: UKNS | I133: Talisman | J133: 2016-04-01 | K133: 2016-10-01 | L133: 409000 | M133: 403000
A134: Sedco 714 | B134: -7 | C134: semi | E134: 1983/1997 | F134: 1600 | G134: 25000 | H134: UKNS | I134: Total | J134: 2012-12-01 | K134: 2014-04-01 | L134: 400000 | M134: 398000 | O134: 0 | P134: 61 | Q134: 59 | R134: 0 | T134: 0 | U134: 0 | V134: 0 | W134: 0
B135: -7 | H135: UKNS | I135: Total | J135: 2014-08-29 | K135: 2015-08-01 | L135: 438000 | M135: =L134 -> 400000
B136: -7 | H136: UKNS | I136: Total | J136: =K135 -> 2015-08-01 | K136: 2016-02-01 | L136: 445000 | M136: =L135 -> 438000
A137: GSF Grand Banks | B137: (6), (8) | C137: semi | E137: 1984 | F137: 1500 | G137: 25000 | H137: Canada | I137: Husky | J137: 2013-01-01 | K137: 2015-09-01 | L137: 409000 | M137: 297000 | O137: 90 | P137: 33 | Q137: 0 | R137: 0 | T137: 0 | U137: 0 | V137: 0 | W137: 0
A138: Actinia | C138: semi | E138: 1982 | F138: 1500 | G138: 25000 | H138: India | I138: ONGC | J138: 2012-06-01 | K138: 2015-07-01 | L138: 190000 | M138: 222000 | O138: 0 | P138: 0 | Q138: 21 | R138: 0 | T138: 0 | U138: 0 | V138: 21 | W138: 0
A139: Sedco 601 | C139: semi | E139: 1983 | F139: 1500 | G139: 25000 | H139: Malaysia | K139: Stacked | O139: 0 | P139: 0 | Q139: 0 | R139: 0 | T139: 0 | U139: 0 | V139: 0 | W139: 0
A140: Transocean Winner | B140: (6), (7) | C140: semi | E140: 1983 | F140: 1500 | G140: 25000 | H140: NNS | I140: Marathon | J140: 2013-01-01 | K140: 2015-07-01 | L140: 458000 | M140: 495000 | O140: 0 | P140: 0 | Q140: 0 | R140: 0 | T140: 0 | U140: 0 | V140: 0 | W140: 0
B141: (6), (7) | H141: NNS | I141: Marathon | J141: =+K140 -> 2015-07-01 | K141: 2016-07-01 | L141: 499000 | M141: =+L140 -> 458000
A142: Transocean Searcher | B142: (6), (7) | C142: semi | E142: 1983/1988 | F142: 1500 | G142: 25000 | H142: NNS | I142: BG | J142: 2012-06-01 | K142: 2015-05-01 | L142: 396000 | M142: 447000 | O142: 0 | P142: 0 | Q142: 0 | R142: 0 | T142: 0 | U142: 0 | V142: 0 | W142: 0
A143: Transocean Prospect | B143: -7 | C143: semi | E143: 1983/1992 | F143: 1500 | G143: 25000 | H143: UKNS | I143: Nexen | J143: 2013-08-01 | K143: 2014-05-15 | L143: 425000 | M143: 252000 | O143: 0 | P143: 0 | Q143: 0 | R143: 0 | T143: 0 | U143: 0 | V143: 0 | W143: 0
B144: -7 | H144: UKNS | I144: Conoco Phillips | J144: 2014-05-15 | K144: 2014-10-01 | L144: 406000 | M144: 425000
B145: -7 | H145: UKNS | I145: Conoco Phillips | J145: 2014-10-01 | K145: 2015-01-01 | L145: 412000 | M145: 406000
B146: -7 | H146: UKNS | I146: Conoco Phillips | J146: 2015-01-01 | K146: 2015-05-01 | L146: 376000 | M146: 412000
A147: J.W. McLean | C147: semi | E147: 1974/1996 | F147: 1250 | G147: 25000 | H147: UKNS | K147: Stacked | O147: 0 | P147: 0 | Q147: 0 | R147: 0 | T147: 0 | U147: 0 | V147: 0 | W147: 0
A148: Sedco 704 | B148: (7) | C148: semi | E148: 1974/1993 | F148: 1000 | G148: 25000 | H148: UKNS | I148: Maersk | J148: 2013-06-01 | K148: 2016-02-01 | L148: 374000 | M148: 335000 | O148: 0 | P148: 0 | Q148: 0 | R148: 0 | T148: 0 | U148: 0 | V148: 0 | W148: 0
M150: Total Estimated Days Out of Service | O150: =SUM(O111:O148) -> 210.9166667 | P150: =SUM(P111:P148) -> 125 | Q150: =SUM(Q111:Q148) -> 80 | R150: =SUM(R111:R148) -> 30 | T150: =SUM(T111:T148) -> 82 | U150: =SUM(U111:U148) -> 0 | V150: =SUM(V111:V148) -> 21 | W150: =SUM(W111:W148) -> 7
M151: Estimated Average Contract Dayrate(5) | O151: 345000 | P151: 354000 | Q151: 363000 | R151: 370000 | T151: 370000 | U151: 369000 | V151: 387000 | W151: 395000
A153: High Specification Jackups (11)
A155: GSF Constellation I | B155: -6 | E155: 2003 | F155: 400 | G155: 30000 | H155: Indonesia | I155: Total | J155: 2012-09-01 | K155: 2016-01-01 | L155: 150000 | M155: 140000 | O155: 0 | P155: 0 | Q155: 0 | R155: 0 | T155: 0 | U155: 0 | V155: 0 | W155: 0
A156: GSF Constellation II | B156: -6 | E156: 2004 | F156: 400 | G156: 30000 | H156: Gabon | I156: Total | J156: 2012-10-01 | K156: 2015-07-01 | L156: 165000 | M156: 109000 | O156: 0 | P156: 0 | Q156: 0 | R156: 0 | T156: 0 | U156: 0 | V156: 0 | W156: 0
A157: GSF Galaxy I | B157: -7 | E157: 1991/2001 | F157: 400 | G157: 30000 | H157: UKNS | I157: Total | J157: 2014-04-01 | K157: 2014-10-01 | L157: 216000 | M157: 133000 | O157: 90 | P157: 34 | Q157: 0 | R157: 0 | T157: 0 | U157: 0 | V157: 0 | W157: 0
B158: -7 | H158: UKNS | I158: Total | J158: =K157 -> 2014-10-01 | K158: 2015-04-01 | L158: 219000 | M158: 216000
B159: -7 | H159: UKNS | I159: Total | J159: =K158 -> 2015-04-01 | K159: 2015-10-31 | L159: 222000 | M159: 219000
B160: -7 | H160: UKNS | I160: Total | J160: =K159 -> 2015-10-31 | K160: 2016-04-30 | L160: 226000 | M160: 222000
B161: -7 | H161: UKNS | I161: Total | J161: 2016-04-30 | K161: 2016-10-31 | L161: 229000 | M161: 226000
B162: -7 | H162: UKNS | I162: Total | J162: 2016-10-31 | K162: 2017-04-30 | L162: 232000 | M162: 229000
A163: GSF Galaxy II | B163: -7 | E163: 1998 | F163: 400 | G163: 30000 | H163: UKNS | I163: GDF Suez | J163: 2014-03-01 | K163: 2014-06-01 | L163: 192000 | M163: 190000 | O163: 31 | P163: 0 | Q163: 0 | R163: 0 | T163: 0 | U163: 0 | V163: 0 | W163: 0
B164: -7 | H164: UKNS | I164: GDF Suez | J164: =K163 -> 2014-06-01 | K164: 2014-09-01 | L164: 211000 | M164: 192000
B165: -7 | H165: UKNS | I165: GDF Suez | J165: =K164 -> 2014-09-01 | K165: 2015-01-31 | L165: 221000 | M165: 211000
A166: GSF Galaxy III | B166: (6), (7) | E166: 1999 | F166: 400 | G166: 30000 | H166: UKNS | I166: Nexen | J166: 2013-07-01 | K166: 2014-05-01 | L166: 226000 | M166: 146000 | O166: 0 | P166: 0 | Q166: 36 | R166: 57 | T166: 0 | U166: 0 | V166: 0 | W166: 0
B167: (7) | H167: UKNS | I167: Nexen | J167: 2014-05-22 | K167: 2014-07-31 | L167: 180000 | M167: 226000
A168: Transocean Honor | B168: (6), (13) | E168: 2012 | F168: 400 | G168: 30000 | H168: Angola | I168: Chevron | J168: 2012-05-01 | K168: 2015-04-01 | L168: 153000 | M168: N/A | O168: 0 | P168: 0 | Q168: 0 | R168: 9 | T168: 0 | U168: 0 | V168: 0 | W168: 0
A169: GSF Magellan | E169: 1992 | F169: 350 | G169: 30000 | H169: Nigeria | I169: ExxonMobil | J169: 2013-05-01 | K169: 2014-05-01 | L169: 168000 | M169: 160000 | O169: 0 | P169: 28 | Q169: 0 | R169: 0 | T169: 0 | U169: 0 | V169: 0 | W169: 0
A170: GSF Monarch | B170: -7 | E170: 1986 | F170: 350 | G170: 30000 | H170: UKNS | I170: GDF Suez | J170: 2014-03-01 | K170: 2014-09-01 | L170: 167000 | M170: 164000 | O170: 0 | P170: 0 | Q170: 0 | R170: 0 | T170: 0 | U170: 0 | V170: 0 | W170: 0
B171: -7 | H171: UKNS | I171: GDF Suez | J171: 2014-09-01 | K171: 2015-03-01 | L171: 169000 | M171: 167000
A172: Transocean Andaman | B172: -6 | E172: 2013 | F172: 350 | G172: 35000 | H172: Thailand | I172: Chevron | J172: 2013-05-17 | K172: 2016-05-24 | L172: 145000 | M172: N/A | O172: 0 | P172: 0 | Q172: 0 | R172: 0 | T172: 0 | U172: 0 | V172: 3 | W172: 0
A173: Transocean Siam Driller | B173: -6 | E173: 2013 | F173: 350 | G173: 35000 | H173: Thailand | I173: Chevron | J173: 2013-03-27 | K173: 2018-03-26 | L173: 139000 | M173: N/A | O173: 0 | P173: 0 | Q173: 0 | R173: 0 | T173: 0 | U173: 0 | V173: 3 | W173: 0
A174: Transocean Ao Thai | B174: -6 | E174: 2013 | F174: 350 | G174: 35000 | H174: Thailand | I174: Chevron | J174: 2013-10-10 | K174: 2018-09-10 | L174: 135000 | M174: N/A | O174: 0 | P174: 0 | Q174: 0 | R174: 0 | T174: 0 | U174: 0 | V174: 0 | W174: 0
M175: Total Estimated Days Out of Service | O175: =SUM(O155:O174) -> 121 | P175: =SUM(P155:P174) -> 62 | Q175: =SUM(Q155:Q174) -> 36 | R175: =SUM(R155:R174) -> 66 | T175: =SUM(T155:T174) -> 0 | U175: =SUM(U155:U174) -> 0 | V175: =SUM(V155:V174) -> 6 | W175: =SUM(W155:W174) -> 0
M176: Estimated Average Contract Dayrate(5) | O176: 158000 | P176: 166000 | Q176: 165000 | R176: 166000 | T176: 161000 | U176: 159000 | V176: 159000 | W176: 159000
M179: Total Estimated Days Out of Service | O179: =+O175+O150+O106+O82+O63 -> 499.7708333 | P179: =+P175+P150+P106+P82+P63 -> 503 | Q179: =+Q175+Q150+Q106+Q82+Q63 -> 461 | R179: =+R175+R150+R106+R82+R63 -> 381 | T179: =+T175+T150+T106+T82+T63 -> 515 | U179: =+U175+U150+U106+U82+U63 -> 437 | V179: =+V175+V150+V106+V82+V63 -> 57 | W179: =+W175+W150+W106+W82+W63 -> 297
A182: Fixed-Price Options - See Footnote 10
A184: Rigs Under Construction
A186: Deepwater Asgard | C186: ship | D186: « | E186: TBA | F186: 12000 | G186: 40000 | H186: Indonesia | I186: TBA | J186: Q2 2017 | K186: Q2 2018 | L186: 500000 | M186: 600000
A188: High Specification Floater: Ultra-Deepwater
A190: Deepwater Expedition | C190: ship | D190: « | E190: 1999 | F190: 8500 | G190: 30000 | H190: Saudi Arabia | I190: Saudi Aramco | J190: 2014-11-01 | K190: 2015-07-01 | L190: 695000 | M190: 650000
H191: Saudi Arabia | I191: Saudi Aramco | J191: 2015-09-01 | K191: 2016-05-01 | L191: 695000 | M191: 695000
H192: Saudi Arabia | I192: Saudi Aramco | J192: 2016-05-01 | K192: 2016-12-30 | L192: 695000 | M192: 695000
A193: Cajun Express | C193: semi | D193: « | E193: 2001 | F193: 8500 | G193: 35000 | H193: Ivory Coast | I193: CNR | J193: 2015-11-01 | K193: 2016-01-01 | L193: 495000 | M193: 495000
A195: High Specification Floater: Deepwater
A197: Discoverer Seven Seas | C197: ship | D197: « | E197: 1976/1997 | F197: 7000 | G197: 25000 | H197: TBA | I197: TBA | J197: 2014-09-30 | K197: 2014-10-30 | L197: 400000 | M197: 400000
H198: TBA | I198: TBA | J198: 2014-10-30 | K198: 2014-12-30 | L198: 400000 | M198: 400000
A200: High Specification Floater: Harsh Environment
A202: Transocean Spitsbergen | B202: (6), (7), (16) | C202: semi | D202: « | E202: 2010 | F202: 10000 | G202: 30000 | H202: NNS | I202: Statoil | J202: 2015-07-01 | K202: 2017-07-01 | L202: 547000 | M202: 547000
A203: Polar Pioneer | B203: -6 | C203: semi | E203: 1985 | F203: 1500 | G203: 25000 | H203: Alaska | I203: Shell | J203: 2017-06-17 | K203: 2017-11-17 | L203: 620000 | M203: 589000
A204: Transocean Arctic | B204: (6), (7) | C204: semi | E204: 1986 | F204: 1650 | G204: 25000 | H204: NNS | I204: OMV | J204: 2016-01-01 | K204: 2016-03-01 | L204: 519000 | M204: 519000
A206: High Specification Jackups
A208: GSF Constellation II | B208: -6 | E208: 2004 | F208: 400 | G208: 30000 | H208: Gabon | I208: Total | J208: 2015-07-01 | K208: 2016-07-01 | L208: 160000 | M208: 109000
A209: GSF Galaxy I | B209: (6), (7) | E209: 1991/2001 | F209: 400 | G209: 30000 | H209: UKNS | I209: Total | J209: 2017-05-28 | K209: 2018-05-27 | L209: 240000 | M209: 231000
B210: (6), (7) | H210: UKNS | I210: Total | J210: 2018-05-27 | K210: 2019-05-27 | L210: 250000 | M210: 240000
A212: Revenue Efficiency
A213: Revenue efficiency is defined as actual contract drilling revenues for the measurement period divided by the maximum revenue calculated for the measurement period, expressed as a percentage. Maximum revenue is defined as the greatest amount of contract drilling revenues the drilling unit could earn for the measurement period, excluding amounts related to incentive provisions. Revenue Efficiency does not apply during Out of Service Days (Shipyard, Mobilizations, Demobilizations, Contract Preparation).
C215: Q4 2013 Actual | D215: Q3 2013 Actual | E215: Q2 2013 Actual | F215: Q1 2013 Actual | G215: Q4 2012 Actual | H215: Q3 2012 Actual | I215: Q2 2012 Actual | J215: Q1 2012 Actual
A216: Ultra Deepwater | C216: 0.8995562286 | D216: 0.925 | E216: 0.911 | F216: 0.838 | G216: 0.955 | H216: 0.959 | I216: 0.924 | J216: 0.89
A217: Deepwater | C217: 0.9495099193 | D217: 0.911 | E217: 0.918 | F217: 0.864 | G217: 0.909 | H217: 0.961 | I217: 0.945 | J217: 0.831
A218: Harsh Environment Floaters | C218: 0.9209016485 | D218: 0.999 | E218: 0.983 | F218: 0.976 | G218: 0.973 | H218: 0.954 | I218: 0.979 | J218: 0.978
A219: Midwater Floaters | C219: 0.9229659201 | D219: 0.953 | E219: 0.945 | F219: 0.921 | G219: 0.939 | H219: 0.904 | I219: 0.882 | J219: 0.906
A220: High Specification Jackups | C220: 0.971561512 | D220: 0.989 | E220: 0.986 | F220: 0.964 | G220: 0.952 | H220: 0.972 | I220: 0.943 | J220: 0.921
A221: Total Fleet - Continuing Operations | C221: 0.917 | D221: 0.94 | E221: 0.931 | F221: 0.88 | G221: 0.947 | H221: 0.949 | I221: 0.927 | J221: 0.896
A223: Estimated Contract Drilling Revenue can be calculated as: Paid Days on Contract * Average Contract Dayrate * Revenue Efficiency

Sheet Footnotes
B2: =Report!A2 -> Updated: April 17, 2014
B3: =Report!A3 -> Revisions Noted in Bold
B5: Footnotes
A6: Prev
A7: (1) | B7: (1) | C7: Dates shown are the original service date and the date of the most recent upgrade, if any.
A8: (2) | B8: (2) | C8: Estimated Contract Start and Estimated Expiration Dates are calculated as follows: (1) for events estimated to occur between the 1st and 15th of a month, the previous month is reported (i.e. a contract which is estimated to commence on May 4, 2013 will be reported as commencing in April 2013) and (2) for events estimated to occur between the 16th and the end of a month, the actual month is reported (i.e. a contract which is estimated to commence on May 24, 2013 will be reported as commencing in May 2013). Expiration dates represent the company's current estimate of the earliest date the contract for each rig is likely to expire. Some rigs have two or more contracts in continuation, so the last line shows the estimated earliest availability. Many contracts permit the customer to extend the contract.
A9: (3) | B9: (3) | C9: Represents the full operating dayrate, although the average dayrate over the term of the contract will be lower and could be substantially lower. Does not reflect incentive programs which are typically based on the rig's operating performance against a performance curve. Please refer to the “Customer Contract Duration and Dayrates and Risks Associated with Operations” section of the Disclaimers & Definitions for a description of dayrates. This column may not reflect the rate currently being received under the contract as a result of an applicable standby rate or other rate, which typically is less than the contract dayrate.
A10: (4) | B10: (4) | C10: The out of service time represents those days where a rig is scheduled to be out of service and not be available to earn an operating dayrate. Please refer to the “Out of Service Days (Shipyards, Mobilizations, Demobilizations, Contract Preparation)” section of the Disclaimers & Definitions for a full description.
A11: (5) | B11: (5) | C11: Estimated Average Contract Dayrate is defined as the average contracted full operating dayrate to be earned per revenue earning day. See note (3) for definition of full operating dayrate.
A12: (6) | B12: (6) | C12: Reflects the current contracted dayrate which could reflect prior cost escalations and could change in the future due to further cost escalations.
A13: (7) | B13: (7) | C13: Reflects the current contracted dayrate which is comprised of a foreign currency component and which could change due to foreign exchange adjustments.
A14: (8) | B14: (8) | C14: Current contract provides for a bonus incentive opportunity not reflected in the stated current contract dayrate.
A15: (9) | B15: (9) | C15: On February 26, 2014, a subsidiary of Transocean Ltd. awarded contracts to Sembcorp Marine's subsidiary, Jurong Shipyard, in Singapore for construction of two newbuild dynamically positioned ultra-deepwater drillships. The two drillships are expected to be delivered from the shipyard in the second quarter of 2017 and the first quarter of 2018, respectively.
A16: (10) | B16: (10) | C16: Fixed price options may be exercised at the customer’s discretion. During periods when dayrates on new contracts are increasing relative to existing contracts, the likelihood of customers’ exercising fixed price options increases. During periods when dayrates on new contracts are decreasing relative to existing contracts, the likelihood of customers’ exercising fixed price options declines.
A17: (11) | B17: (11) | C17: The contract is expected to start in the quarter indicated. Factors that could influence the contract start date include shipyard delivery, customer acceptance, and mobilization to operating location, among others.
A18: (13) | B18: (12) | C18: Until August 2012, the contract dayrate was $469,000, subject to cost escalation. The dayrate for the remainder of the contract is linked to the standard West Texas Intermediate crude oil price with a floor of $40 per barrel resulting in a contract dayrate of $400,000 and a ceiling of $70 per barrel resulting in a contract dayrate of $500,000, subject to cost escalation.
A19: (14) | B19: (13) | C19: The rig is owned by a joint venture in which the company owns less than a 100 percent interest. Dayrate reflects 100 percent of the contract rate.
A20: (15) | B20: (14) | C20: The customer may elect to have the operating dayrate for the last five years of the contract fluctuate based on crude oil price with a floor of $458,250 corresponding to a crude oil price of less than or equal to $50 per barrel, and a ceiling of $558,250 corresponding to a crude oil price of $100 per barrel or greater.
A21: (17) | B21: (15) | C21: While the customer has the option to add any out of service days to the end of the contract, the Estimated Expiration Date does not reflect any extension due to this option until actually exercised by the customer.
A22: (18) | B22: (16) | C22: Dayrate excludes additional premiums for parallel operations at well centers and dynamic position operations.
A23: (19) | B23: (17) | C23: Dayrate excludes additional premiums for parallel operations at well centers, dynamic position operations and HPHT operations. Reduced dayrate will apply up to a maximum of 200 days for operation in water depths less or equal to 500 meters.
A24: (20) | B24: (18) | C24: The contract guarantees a minimum of 240 days at this dayrate which applies for drilling HPHT wells. The dayrate will become $265,000 if the rig drills standard wells.
B25: (19) | C25: The Deepwater Discovery shipyard extends into the first quarter of 2016 by 27 days and the Sedco 707 shipyard extends into the first quarter of 2016 by 29 days.
B26: (20) | C26: Reflects the current contracted dayrate for Morocco operations, inclusive of taxes; dayrate will be adjusted to reflect change in location to Senegal.
B27: (21) | C27: As mutually agreed between the company and the customer, effective September 5, 2013 the contract was suspended on the deepwater floater Sedco 710. The company is currently in discussions with the customer regarding the remaining contract backlog on the rig. The rig will be stacked.
B28: (22) | C28: By mutual agreement (related to a previous fire incident on the rig), dayrate will be $455,000 from May 1, 2014 to October 15, 2014. If there is a well-in-progress at October 15, 2014, the dayrate will revert back to $600,000.
B29: (23) | C29: The first of five newbuild high-specification jackups contracted to Keppel FELS Limited's shipyard in Singapore is expected to be delivered from the shipyard in the first quarter of 2016 and the remaining four jackups delivered at approximately four-month intervals thereafter.
B30: (24) | C30: The contract provides for an operating dayrate of $620,000 during the summer season (from July through October) and $589,000 per day during the winter season (from November through June).
B31: (25) | C31: The Sedneth 701 sustained damage from a galley fire. The company has decided to divest the rig and has classified it as held for sale. Discussions are underway with the customer to transfer the remaining contract backlog to an alternate rig.

Sheet Stacked&Idle
A2: =Report!A2 -> Updated: April 17, 2014
A3: =Report!A3 -> Revisions Noted in Bold
A5: Stacked Rigs
A6: Rig Type/Name | B6: Start Date
A7: Deepwater (3)
A8: Sovereign Explorer | B8: 2010-11-01
A9: Transocean Rather | B9: 2013-09-18
A10: Sedco 710 | B10: 2013-09-05
A11: Midwater Floaters (5)
A12: Sedco 700 | B12: Prior to 2010
A13: GSF Aleutian Key | B13: 2010-01-09
A14: Sedco 601 | B14: 2011-04-09
A15: J.W. McLean | B15: 2011-04-13
A16: GSF Arctic I | B16: 2013-07-01
A17: Idle (3)
A18: Sedco Energy | B18: 2013-12-15
A19: Transocean Amirante | B19: 2013-08-15
A20: GSF Development Driller I | B20: 2014-02-21
A22: Stacked and Idle rigs detailed above are not currently operating on contract. Start date denotes when rig commences idle or stacked status.
A23: An "Idle" rig is between contracts, readily available for operations, and operating costs are typically at or near normal levels. A "Stacked" rig, on the other hand, is manned by a reduced crew or unmanned and typically has reduced operating costs and is (i) preparing for an extended period of inactivity, (ii) expected to continue to be inactive for an extended period, or (iii) completing a period of extended inactivity. However, stacked rigs will continue to incur operating costs at or above normal operating costs for 30 to 60 days following initiation of stacking.
J166: 2013-06-01
I167: =+J166 -> 2013-06-01 | J167: 2013-09-01

Sheet Disclaimers&Definitions
A3: DISCLAIMERS & DEFINITIONS
